lending/lending_fUSD_20241214
["ID","MTS","AMOUNT","RATE_DAILY","PERIOD"]
[345375334,1734202242441,-500.0,0.00021095,3]
[345375336,1734202242450,-500.0,0.00021095,3]
[345375338,1734202242459,-500.0,0.00021095,3]
[345375340,1734202242467,-500.0,0.00021095,3]
[345375342,1734202242477,-500.0,0.00021095,3]
[345375344,1734202242485,-177.6,0.00021095,3]
[345375346,1734202242499,-399.1539794,0.00021095,3]
[345375348,1734202242508,-500.0,0.00021095,3]
[345375350,1734202242517,-500.0,0.00021095,3]
[345375352,1734202242526,-500.0,0.00021095,3]
[345375354,1734202242536,-500.0,0.00021095,3]
[345375356,1734202242550,-500.0,0.00021095,3]
[345375358,1734202242559,-500.0,0.00021095,3]
[345375360,1734202242568,-531.65,0.00021095,3]
[345375362,1734202242578,-500.0,0.00021095,3]
[345375364,1734202242589,-855.2,0.00021095,3]
[345375366,1734202242598,-500.0,0.00021095,3]
[345375368,1734202242607,-500.0,0.00021095,3]
[345375370,1734202242617,-500.0,0.00021095,3]
[345375372,1734202242626,-500.0,0.00021095,3]
[345375374,1734202242635,-500.0,0.00021095,3]
[345375376,1734202242644,-500.0,0.00021095,3]
[345375378,1734202242653,-648.08,0.00021095,3]
[345375380,1734202242662,-500.0,0.00021095,3]
[345375382,1734202242671,-829.82,0.00021095,3]
[345375384,1734202242680,-500.0,0.00021095,3]
[345375386,1734202242690,-500.0,0.00021095,3]
[345375388,1734202242698,-500.0,0.00021095,3]
[345375390,1734202242708,-500.0,0.00021095,3]
[345375392,1734202242717,-500.0,0.00021095,3]
[345375394,1734202242726,-500.0,0.00021095,3]
[345375396,1734202242735,-500.0,0.00021095,3]
[345375398,1734202242750,-500.0,0.00021095,3]
[345375400,1734202242758,-500.0,0.00021095,3]
[345375402,1734202242767,-500.0,0.00021095,3]
[345375404,1734202242777,-500.0,0.00021095,3]
[345375406,1734202242786,-500.0,0.00021095,3]
[345375408,1734202242795,-150.462763,0.00021095,3]
[345375410,1734202242805,-500.0,0.00021095,3]
[345375412,1734202242814,-500.0,0.00021095,3]
[345375414,1734202242823,-500.0,0.00021095,3]
[345375416,1734202242832,-500.0,0.00021095,3]
[345375417,1734202242841,-500.0,0.00021095,3]
[345375419,1734202242851,-500.0,0.00021095,3]
[345375421,1734202242860,-500.0,0.00021095,3]
[345375424,1734202242869,-500.0,0.00021095,3]
[345375425,1734202242878,-500.0,0.00021095,3]
[345375427,1734202242887,-500.0,0.00021095,3]
[345375428,1734202242896,-500.0,0.00021095,3]
[345375430,1734202242905,-500.0,0.00021095,3]
[345375431,1734202242914,-500.0,0.00021095,3]
[345375432,1734202242923,-564.0,0.00021095,3]
[345375434,1734202242935,-500.0,0.00021095,3]
[345375437,1734202242944,-500.0,0.00021095,3]
[345375438,1734202242953,-500.0,0.00021095,3]
[345375440,1734202242962,-500.0,0.00021095,3]
[345375441,1734202242970,-500.0,0.00021095,3]
[345375443,1734202242979,-500.0,0.00021095,3]
[345375444,1734202242990,-500.0,0.00021095,3]
[345375446,1734202243001,-500.0,0.00021095,3]
[345375447,1734202243010,-500.0,0.00021095,3]
[345375449,1734202243020,-500.0,0.00021095,3]
[345375450,1734202243029,-500.0,0.00021095,3]
[345375452,1734202243038,-500.0,0.00021095,3]
[345375454,1734202243047,-263.90937283,0.00021095,3]
[345375455,1734202243056,-393.46038958,0.00021095,3]
[345375457,1734202243066,-500.0,0.00021095,3]
[345375458,1734202243075,-500.0,0.00021095,3]
[345375460,1734202243084,-500.0,0.00021095,3]
[345375461,1734202243092,-500.0,0.00021095,3]
[345375463,1734202243101,-500.0,0.00021095,3]
[345375465,1734202243110,-500.0,0.00021095,3]
[345375466,1734202243119,-500.0,0.00021095,3]
[345375468,1734202243128,-500.0,0.00021095,3]
[345375470,1734202243137,-500.0,0.00021095,3]
[345375471,1734202243146,-500.0,0.00021095,3]
[345375473,1734202243155,-520.01268288,0.00021095,3]
[345375475,1734202243164,-500.0,0.00021095,3]
[345375476,1734202243173,-500.0,0.00021095,3]
[345375478,1734202243182,-500.0,0.00021095,3]
[345375479,1734202243192,-500.0,0.00021095,3]
[345375481,1734202243201,-421.33046953,0.00021095,3]
[345375487,1734202243274,-78.66953047,0.00021095,3]
[345375499,1734202243449,-500.0,0.00021095,3]
[345375501,1734202243459,-128.70046992,0.00021095,3]
[345375502,1734202243470,-371.29953008,0.00021095,3]
[345375504,1734202243480,-500.0,0.00021095,3]
[345375506,1734202243491,-500.0,0.00021095,3]
[345375507,1734202243501,-174.33459224,0.00021095,3]
[345375510,1734202243525,-18.30540776,0.00021095,3]
[345375511,1734202243533,-471.09459224,0.00021095,3]
[345375512,1734202243544,-28.90540776,0.00021095,3]
[345375513,1734202243553,-500.0,0.00021095,3]
[345375514,1734202243562,-500.0,0.00021095,3]
[345375515,1734202243571,-484.11684372,0.00021095,3]
[345375531,1734202243761,-15.88315628,0.00021095,3]
[345375533,1734202243770,-425.52,0.00021095,3]
[345375535,1734202243779,-500.0,0.00021095,3]
[345375537,1734202243788,-500.0,0.00021095,3]
[345375539,1734202243798,-500.0,0.00021095,3]
[345375541,1734202243807,-500.0,0.00021095,3]
[345375543,1734202243816,-500.0,0.00021095,3]
[345375545,1734202243826,-500.0,0.00021095,3]
[345375547,1734202243835,-500.0,0.00021095,3]
[345375549,1734202243844,-500.0,0.00021095,3]
[345375551,1734202243853,-500.0,0.00021095,3]
[345375553,1734202243862,-500.0,0.00021095,3]
[345375555,1734202243872,-505.25,0.00021095,3]
[345375556,1734202243881,-500.78104387,0.00021095,3]
[345375558,1734202243890,-500.0,0.00021095,3]
[345375561,1734202243899,-500.0,0.00021095,3]
[345375563,1734202243909,-500.0,0.00021095,3]
[345375565,1734202243918,-500.0,0.00021095,3]
[345375567,1734202243927,-500.0,0.00021095,3]
[345375569,1734202243936,-500.0,0.00021095,3]
[345375570,1734202243946,-500.0,0.00021095,3]
[345375572,1734202243955,-1500.0,0.000211,7]
[345375575,1734202243964,-15343.00502465,0.00021118,2]
[345375576,1734202243973,-171.77,0.00021145,2]
[345375578,1734202243982,-200.0,0.00021165,2]
[345375580,1734202243995,-150.0,0.000212,2]
[345375582,1734202244004,-2000.0,0.000212,7]
[345375584,1734202244014,-15343.00502465,0.00021241,2]
[345375586,1734202244022,-324.71142506,0.00021263,2]
[345375588,1734202244031,-1901.7206,0.00021263,2]
[345375590,1734202244040,-2500.0,0.000213,7]
[345375593,1734202244049,-500.0,0.00021363,3]
[345375594,1734202244059,-500.0,0.00021363,3]
[345375596,1734202244067,-500.0,0.00021363,3]
[345375599,1734202244077,-500.0,0.00021363,3]
[345375600,1734202244088,-500.0,0.00021363,3]
[345375603,1734202244099,-500.0,0.00021363,3]
[345375604,1734202244108,-500.0,0.00021363,3]
[345375606,1734202244118,-500.0,0.00021363,3]
[345375609,1734202244127,-500.0,0.00021363,3]
[345375610,1734202244136,-500.0,0.00021363,3]
[345375612,1734202244146,-500.0,0.00021363,3]
[345375615,1734202244155,-500.44,0.00021363,3]
[345375617,1734202244164,-500.0,0.00021363,3]
[345375619,1734202244173,-500.0,0.00021363,3]
[345375620,1734202244182,-500.0,0.00021363,3]
[345375623,1734202244192,-500.0,0.00021363,3]
[345375624,1734202244201,-500.0,0.00021363,3]
[345375626,1734202244210,-500.0,0.00021363,3]
[345375628,1734202244219,-500.0,0.00021363,3]
[345375630,1734202244228,-500.0,0.00021363,3]
[345375633,1734202244239,-348.27715477,0.00021363,3]
[345375635,1734202244251,-20.2932351,0.00021363,3]
[345375637,1734202244263,-479.7067649,0.00021363,3]
[345375639,1734202244272,-500.0,0.00021363,3]
[345375641,1734202244281,-500.0,0.00021363,3]
[345375643,1734202244290,-500.0,0.00021363,3]
[345375645,1734202244299,-500.0,0.00021363,3]
[345375647,1734202244308,-500.0,0.00021363,3]
[345375649,1734202244317,-500.0,0.00021363,3]
[345375651,1734202244327,-500.0,0.00021363,3]
[345375653,1734202244335,-500.0,0.00021363,3]
[345375655,1734202244345,-457.0793695,0.00021363,3]
[345375657,1734202244357,-42.9206305,0.00021363,3]
[345375659,1734202244366,-239.1493695,0.00021363,3]
[345375661,1734202244377,-260.8506305,0.00021363,3]
[345375663,1734202244386,-147.7493695,0.00021363,3]
[345375665,1734202244397,-352.2506305,0.00021363,3]
[345375667,1734202244406,-1738.45,0.00021363,3]
[345375669,1734202244415,-2576.23,0.00021363,3]
[345375671,1734202244425,-500.0,0.00021363,3]
[345375673,1734202244434,-69.96467949,0.00021363,3]
[345375676,1734202244449,-510.88532051,0.00021363,3]
[345375678,1734202244458,-500.0,0.00021363,3]
[345375680,1734202244467,-500.0,0.00021363,3]
[345375682,1734202244476,-503.6440326,0.00021363,3]
[345375684,1734202244485,-539.38787069,0.00021363,3]
[345375686,1734202244497,-500.0,0.00021363,3]
[345375688,1734202244507,-500.0,0.00021363,3]
[345375690,1734202244516,-525.66618224,0.00021363,3]
[345375692,1734202244525,-500.0,0.00021363,3]
[345375694,1734202244534,-137.04864201,0.00021363,3]
[345375696,1734202244546,-362.95135799,0.00021363,3]
[345375698,1734202244560,-500.0,0.00021363,3]
[345375700,1734202244569,-500.0,0.00021363,3]
[345375702,1734202244578,-500.0,0.00021363,3]
[345375704,1734202244587,-5268.5988195,0.00021363,2]
[345375706,1734202244599,-10074.40620515,0.00021363,2]
[345375708,1734202244609,-266.97,0.0002137,2]
[345375710,1734202244618,-848.89926232,0.00021391,2]
[345375718,1734202244739,-151.10073768,0.00021391,2]
[345375720,1734202244755,-284.90925232,0.000214,7]
[345375722,1734202244766,-215.09074768,0.000214,7]
[345375724,1734202244775,-4566.74616354,0.00021486,2]
[345375726,1734202244786,-10776.25886111,0.00021486,2]
[345375729,1734202244796,-500.0,0.000215,7]
[345375731,1734202244806,-436.17,0.00021534,2]
[345375733,1734202244816,-436.17,0.00021534,2]
[345375735,1734202244825,-436.17,0.00021534,2]
[345375737,1734202244835,-435.83,0.00021534,2]
[345375739,1734202244844,-150.0,0.00021546,2]
[345375741,1734202244854,-6540.86257681,0.00021599,2]
[345375743,1734202244863,-500.0,0.000216,7]
[345375745,1734202244873,-20000.0,0.000216,2]
[345375747,1734202244882,-15343.00502465,0.00021609,2]
[345375749,1734202244892,-5800.0,0.00021697,2]
[345375751,1734202244901,-500.0,0.000217,7]
[345375753,1734202244911,-500.0,0.00021731,3]
[345375755,1734202244920,-500.0,0.00021731,3]
[345375757,1734202244930,-531.65,0.00021731,3]
[345375759,1734202244939,-500.0,0.00021731,3]
[345375761,1734202244949,-829.82,0.00021731,3]
[345375763,1734202244959,-500.0,0.00021731,3]
[345375765,1734202244968,-379.2990796,0.00021731,3]
[345375767,1734202244978,-500.0,0.00021731,3]
[345375769,1734202244987,-500.0,0.00021731,3]
[345375771,1734202245002,-500.0,0.00021731,3]
[345375773,1734202245011,-500.0,0.00021731,3]
[345375775,1734202245020,-500.0,0.00021731,3]
[345375777,1734202245029,-500.0,0.00021731,3]
[345375778,1734202245039,-500.0,0.00021731,3]
[345375781,1734202245049,-500.0,0.00021731,3]
[345375782,1734202245058,-15343.00502465,0.00021732,2]
[345375784,1734202245068,-641.87,0.00021738,2]
[345375786,1734202245077,-813.0,0.000218,7]
[345375788,1734202245087,-324.71142506,0.00021832,2]
[345375791,1734202245098,-171.77,0.0002185,2]
[345375793,1734202245107,-1475.167,0.00021854,2]
[345375794,1734202245117,-15343.00502465,0.00021854,2]
[345375797,1734202245127,-1016.16,0.00021908,2]
[345375798,1734202245137,-694.48,0.00021917,3]
[345375800,1734202245146,-694.48,0.00021917,3]
[345375803,1734202245157,-694.48,0.00021917,3]
[345375805,1734202245167,-694.48,0.00021917,3]
[345375807,1734202245176,-694.48,0.00021917,3]
[345375809,1734202245186,-694.48,0.00021917,3]
[345375811,1734202245196,-694.48,0.00021917,3]
[345375812,1734202245205,-694.48,0.00021917,3]
[345375814,1734202245214,-694.48,0.00021917,3]
[345375817,1734202245224,-694.48,0.00021917,3]
[345375819,1734202245233,-694.48,0.00021917,3]
[345375820,1734202245246,-694.48,0.00021917,3]
[345375823,1734202245256,-694.48,0.00021917,3]
[345375825,1734202245265,-694.48,0.00021917,3]
[345375827,1734202245275,-694.48,0.00021917,3]
[345375829,1734202245284,-694.48,0.00021917,3]
[345375830,1734202245294,-694.48,0.00021917,3]
[345375832,1734202245303,-694.48,0.00021917,3]
[345375835,1734202245313,-694.48,0.00021917,3]
[345375837,1734202245323,-272.57897941,0.00021917,3]
[345375839,1734202245335,-253.6709994,0.00021917,3]
[345375841,1734202245347,-168.23002119,0.00021917,3]
[345375843,1734202245356,-694.48,0.00021917,3]
[345375845,1734202245366,-694.48,0.00021917,3]
[345375847,1734202245375,-694.48,0.00021917,3]
[345375849,1734202245384,-274.87297881,0.00021917,3]
[345375917,1734202246075,-265.01599282,0.00020995,2]
[345375919,1734202246087,-734.98400718,0.00020995,2]
[345375921,1734202246096,-500.0,0.00021095,3]
[345375923,1734202246106,-500.0,0.00021363,3]
[345375925,1734202246115,-419.78569481,0.00021917,3]
[345375927,1734202246125,-500.0,0.00021917,2]
[345375929,1734202246134,-287.77670427,0.00021917,2]
[345375933,1734202246162,-212.22329573,0.00021917,2]
[345375935,1734202246172,-386.66031346,0.00021917,2]
[345375937,1734202246181,-360.4217358,0.00021917,2]
[345375939,1734202246192,-139.5782642,0.00021917,2]
[345375941,1734202246202,-126.2802638,0.00021917,3]
[345375944,1734202246213,-1749.4297362,0.00021917,3]
[345375946,1734202246222,-1875.71,0.00021917,3]
[345375948,1734202246231,-1875.71,0.00021917,3]
[345375950,1734202246240,-1248.2323798,0.00021917,3]
[345375957,1734202246306,-627.4776202,0.00021917,3]
[345375959,1734202246316,-1875.71,0.00021917,3]
[345375961,1734202246325,-1875.71,0.00021917,3]
[345375963,1734202246334,-1875.71,0.00021917,3]
[345375965,1734202246343,-1875.71,0.00021917,3]
[345375967,1734202246352,-1875.71,0.00021917,3]
[345375969,1734202246362,-1875.71,0.00021917,3]
[345375971,1734202246371,-1875.71,0.00021917,3]
[345375973,1734202246380,-1875.71,0.00021917,3]
[345375975,1734202246390,-1875.71,0.00021917,3]
[345375977,1734202246399,-1875.71,0.00021917,3]
[345375979,1734202246408,-1875.71,0.00021917,3]
[345375981,1734202246418,-1875.71,0.00021917,3]
[345375983,1734202246428,-1875.71,0.00021917,3]
[345375985,1734202246437,-1875.71,0.00021917,3]
[345375987,1734202246446,-1875.71,0.00021917,3]
[345375989,1734202246455,-1875.71,0.00021917,3]
[345375991,1734202246464,-1875.71,0.00021917,3]
[345375993,1734202246473,-1875.71,0.00021917,3]
[345375995,1734202246482,-1875.71,0.00021917,3]
[345375997,1734202246491,-1875.7817792,0.00021917,3]
[345375998,1734202246506,-600.0,0.00021917,3]
[345376001,1734202246515,-600.0,0.00021917,3]
[345376003,1734202246524,-600.0,0.00021917,3]
[345376005,1734202246534,-600.0,0.00021917,3]
[345376007,1734202246544,-600.0,0.00021917,3]
[345376008,1734202246555,-600.0,0.00021917,3]
[345376010,1734202246565,-600.0,0.00021917,3]
[345376012,1734202246574,-600.0,0.00021917,3]
[345376014,1734202246583,-315.83508827,0.00021917,3]
[345376016,1734202246592,-500.0,0.00021917,3]
[345376019,1734202246603,-500.0,0.00021917,3]
[345376020,1734202246612,-700.0,0.00021972,2]
[345376022,1734202246621,-500.0,0.00021972,2]
[345376025,1734202246633,-1700.0,0.00021972,2]
[345376027,1734202246642,-500.0,0.00021976,3]
[345376028,1734202246651,-500.0,0.00021976,3]
[345376030,1734202246660,-500.0,0.00021976,3]
[345376031,1734202246670,-476.19,0.00021976,3]
[345376032,1734202246678,-500.0,0.00021976,3]
[345376033,1734202246687,-15343.00502465,0.00021977,2]
[345376034,1734202246696,-538.23783,0.0002198,2]
[345376035,1734202246705,-500.0,0.00022,2]
[345376036,1734202246714,-500.0,0.00022,2]
[345376038,1734202246723,-500.0,0.00022,2]
[345376040,1734202246732,-500.0,0.00022,2]
[345376042,1734202246741,-500.0,0.00022,2]
[345376044,1734202246754,-500.0,0.00022,2]
[345376046,1734202246764,-500.0,0.00022,2]
[345376048,1734202246773,-500.0,0.00022,2]
[345376050,1734202246782,-500.0,0.00022,2]
[345376052,1734202246792,-500.0,0.00022,2]
[345376054,1734202246801,-500.0,0.00022,2]
[345376056,1734202246810,-800.0,0.00022,2]
[345376058,1734202246820,-500.0,0.00022,2]
[345376060,1734202246830,-500.0,0.00022,2]
[345376062,1734202246839,-500.0,0.00022,2]
[345376064,1734202246848,-500.0,0.00022,2]
[345376066,1734202246857,-500.0,0.00022,2]
[345376068,1734202246866,-500.0,0.00022,2]
[345376070,1734202246875,-500.0,0.00022,2]
[345376072,1734202246885,-500.0,0.00022,2]
[345376074,1734202246894,-500.0,0.00022,2]
[345376076,1734202246903,-500.0,0.00022,2]
[345376078,1734202246912,-500.0,0.00022,2]
[345376080,1734202246921,-500.0,0.00022,2]
[345376082,1734202246930,-800.0,0.00022,2]
[345376084,1734202246939,-500.0,0.00022,2]
[345376086,1734202246947,-500.0,0.00022,2]
[345376088,1734202246956,-500.0,0.00022,2]
[345376090,1734202246966,-500.0,0.00022,2]
[345376092,1734202246975,-500.0,0.00022,2]
[345376094,1734202246984,-500.0,0.00022,2]
[345376096,1734202246993,-500.0,0.00022,2]
[345376098,1734202247005,-500.0,0.00022,2]
[345376100,1734202247014,-500.0,0.00022,2]
[345376102,1734202247023,-500.0,0.00022,2]
[345376104,1734202247032,-500.0,0.00022,2]
[345376106,1734202247041,-500.0,0.00022,2]
[345376108,1734202247050,-900.0,0.00022,2]
[345376110,1734202247059,-500.0,0.00022,2]
[345376112,1734202247068,-500.0,0.00022,2]
[345376114,1734202247078,-500.0,0.00022,2]
[345376116,1734202247088,-500.0,0.00022,2]
[345376118,1734202247097,-500.0,0.00022,2]
[345376120,1734202247106,-500.0,0.00022,2]
[345376122,1734202247116,-500.0,0.00022,2]
[345376124,1734202247126,-2300.0,0.00022,30]
[345376125,1734202247134,-906.5,0.00022032,15]
[345376126,1734202247145,-1239.20571,0.00022088,7]
[345376128,1734202247154,-702.77203098,0.00022098,2]
[345376129,1734202247163,-702.77203097,0.00022099,2]
[345376131,1734202247172,-158.38005648,0.00022099,2]
[345376132,1734202247181,-172.13566146,0.00022099,2]
[345376134,1734202247190,-219.94445222,0.00022099,2]
[345376135,1734202247199,-702.77203097,0.00022099,2]
[345376137,1734202247209,-15343.00502465,0.000221,2]
[345376139,1734202247218,-151.6568127,0.000221,2]
[345376140,1734202247226,-1178.57253539,0.000221,2]
[345376142,1734202247236,-231.14804883,0.000221,2]
[345376143,1734202247249,-158.38005648,0.00022174,2]
[345376145,1734202247262,-500.0,0.00022197,3]
[345376146,1734202247271,-501.83,0.00022198,3]
[345376148,1734202247281,-500.0,0.00022198,3]
[345376149,1734202247290,-500.0,0.00022198,3]
[345376151,1734202247299,-500.0,0.00022198,3]
[345376152,1734202247308,-500.0,0.00022198,3]
[345376154,1734202247317,-500.0,0.00022198,3]
[345376156,1734202247326,-500.0,0.00022198,3]
[345376157,1734202247335,-500.0,0.00022198,3]
[345376159,1734202247344,-500.0,0.00022198,3]
[345376160,1734202247353,-500.0,0.00022198,3]
[345376162,1734202247363,-500.0,0.00022198,3]
[345376163,1734202247372,-500.0,0.00022198,3]
[345376165,1734202247381,-500.0,0.00022198,3]
[345376167,1734202247390,-500.0,0.00022198,3]
[345376168,1734202247399,-500.0,0.00022198,3]
[345376170,1734202247408,-488.44,0.00022198,3]
[345376172,1734202247417,-500.0,0.00022198,3]
[345376173,1734202247426,-500.0,0.00022198,3]
[345376175,1734202247435,-500.0,0.00022198,3]
[345376176,1734202247445,-500.0,0.00022198,3]
[345376178,1734202247454,-371.19,0.00022198,3]
[345376180,1734202247463,-500.0,0.00022198,3]
[345376181,1734202247473,-500.0,0.00022198,3]
[345376183,1734202247483,-500.0,0.00022198,3]
[345376185,1734202247492,-500.0,0.00022198,3]
[345376186,1734202247505,-289.75,0.00022198,3]
[345376188,1734202247515,-506.49223696,0.00022198,2]
[345376190,1734202247524,-500.0,0.00022198,3]
[345376191,1734202247532,-500.0,0.00022198,3]
[345376193,1734202247542,-500.0,0.00022198,3]
[345376195,1734202247551,-500.0,0.00022198,3]
[345376196,1734202247560,-500.0,0.00022198,3]
[345376198,1734202247570,-500.0,0.00022198,3]
[345376200,1734202247579,-500.0,0.00022198,3]
[345376201,1734202247589,-500.0,0.00022198,3]
[345376203,1734202247598,-618.15,0.00022198,3]
[345376204,1734202247607,-531.26,0.00022198,3]
[345376206,1734202247616,-500.0,0.00022198,3]
[345376208,1734202247627,-503.82871953,0.00022198,3]
[345376209,1734202247636,-500.0,0.00022198,3]
[345376211,1734202247646,-500.0,0.00022198,3]
[345376213,1734202247655,-500.0,0.00022198,3]
[345376214,1734202247665,-500.0,0.00022198,3]
[345376216,1734202247674,-500.0,0.00022198,3]
[345376218,1734202247684,-500.0,0.00022198,3]
[345376219,1734202247694,-500.0,0.00022198,3]
[345376221,1734202247703,-500.0,0.00022198,3]
[345376223,1734202247714,-500.0,0.00022198,3]
[345376224,1734202247723,-500.0,0.00022198,3]
[345376226,1734202247733,-500.0,0.00022198,3]
[345376228,1734202247742,-500.0,0.00022198,3]
[345376229,1734202247755,-500.0,0.00022198,3]
[345376231,1734202247766,-500.0,0.00022198,3]
[345376233,1734202247775,-500.0,0.00022198,3]
[345376234,1734202247784,-500.0,0.00022198,3]
[345376235,1734202247794,-500.0,0.00022198,3]
[345376236,1734202247803,-500.0,0.00022198,3]
[345376237,1734202247813,-500.0,0.00022198,3]
[345376238,1734202247822,-500.0,0.00022198,3]
[345376239,1734202247831,-500.0,0.00022198,3]
[345376240,1734202247840,-500.0,0.00022198,3]
[345376241,1734202247850,-335.68,0.00022198,3]
[345376242,1734202247859,-500.0,0.00022198,3]
[345376244,1734202247868,-500.0,0.00022198,3]
[345376245,1734202247877,-500.0,0.00022198,3]
[345376247,1734202247887,-500.0,0.00022198,3]
[345376249,1734202247896,-500.0,0.00022198,3]
[345376252,1734202247906,-500.0,0.00022198,3]
[345376254,1734202247916,-500.0,0.00022198,3]
[345376256,1734202247927,-500.0,0.00022198,3]
[345376258,1734202247937,-500.0,0.00022198,3]
[345376260,1734202247946,-500.0,0.00022198,3]
[345376262,1734202247957,-500.0,0.00022198,3]
[345376264,1734202247966,-500.0,0.00022198,3]
[345376266,1734202247976,-1738.45,0.00022198,3]
[345376268,1734202247985,-1738.45,0.00022198,3]
[345376270,1734202247997,-1738.45,0.00022198,3]
[345376272,1734202248007,-531.65,0.00022198,3]
[345376274,1734202248016,-531.65,0.00022198,3]
[345376276,1734202248025,-531.65,0.00022198,3]
[345376278,1734202248035,-855.2,0.00022198,3]
[345376280,1734202248045,-855.2,0.00022198,3]
[345376282,1734202248055,-855.2,0.00022198,3]
[345376284,1734202248064,-2576.23,0.00022198,3]
[345376286,1734202248074,-2576.23,0.00022198,3]
[345376288,1734202248085,-2576.23,0.00022198,3]
[345376290,1734202248094,-500.0,0.00022198,3]
[345376292,1734202248104,-500.0,0.00022198,3]
[345376294,1734202248114,-500.0,0.00022198,3]
[345376296,1734202248124,-500.0,0.00022198,3]
[345376298,1734202248134,-500.0,0.00022198,3]
[345376300,1734202248143,-500.0,0.00022198,3]
[345376302,1734202248154,-569.63510002,0.00022198,3]
[345376304,1734202248164,-829.82,0.00022198,3]
[345376306,1734202248173,-829.82,0.00022198,3]
[345376308,1734202248184,-829.82,0.00022198,3]
[345376311,1734202248194,-580.85,0.00022198,3]
[345376312,1734202248203,-580.85,0.00022198,3]
[345376315,1734202248213,-580.85,0.00022198,3]
[345376317,1734202248223,-500.0,0.00022198,3]
[345376319,1734202248232,-353.91,0.00022198,3]
[345376320,1734202248242,-500.0,0.00022198,3]
[345376322,1734202248257,-500.0,0.00022198,3]
[345376325,1734202248267,-500.0,0.00022198,3]
[345376326,1734202248277,-500.0,0.00022198,3]
[345376329,1734202248287,-500.0,0.00022198,3]
[345376331,1734202248297,-500.0,0.00022198,3]
[345376333,1734202248307,-500.0,0.00022198,3]
[345376335,1734202248317,-500.0,0.00022198,3]
[345376337,1734202248327,-500.0,0.00022198,3]
[345376339,1734202248337,-500.0,0.00022198,3]
[345376341,1734202248347,-500.0,0.00022198,3]
[345376343,1734202248356,-500.0,0.00022198,3]
[345376345,1734202248367,-500.0,0.00022198,3]
[345376347,1734202248377,-500.0,0.00022198,3]
[345376349,1734202248387,-500.0,0.00022198,3]
[345376351,1734202248397,-500.0,0.00022198,3]
[345376353,1734202248406,-133.97849712,0.00022198,3]
[345376356,1734202248426,-366.02150288,0.00022198,3]
[345376358,1734202248436,-500.0,0.00022198,3]
[345376360,1734202248446,-500.0,0.00022198,3]
[345376362,1734202248457,-500.0,0.00022198,3]
[345376364,1734202248467,-55.97849712,0.00022198,3]
[345376367,1734202248479,-444.02150288,0.00022198,3]
[345376369,1734202248488,-500.0,0.00022198,3]
[345376370,1734202248500,-500.0,0.00022198,3]
[345376373,1734202248510,-511.34,0.00022198,3]
[345376375,1734202248520,-500.0,0.00022198,3]
[345376377,1734202248529,-500.0,0.00022198,3]
[345376379,1734202248538,-500.0,0.00022198,3]
[345376381,1734202248549,-500.0,0.00022198,3]